fUSD/lending_fUSD_20240526
["ID","MTS","AMOUNT","RATE_DAILY","PERIOD"]
[327991994,1716763856857,-575.39,0.00027945,4]
[327991995,1716763856866,-204.78402807,0.00027945,4]
[327991996,1716763856875,-476.44656103,0.00027945,4]
[327991997,1716763856885,-500.0,0.00027945,4]
[327991998,1716763856895,-343.97462296,0.00027945,4]
[327991999,1716763856904,-400.32,0.00027945,4]
[327992000,1716763856913,-500.0,0.00027945,4]
[327992001,1716763856922,-229.93,0.00027945,4]
[327992002,1716763856932,-195.51,0.00027945,4]
[327992003,1716763856941,-158.25,0.00027945,4]
[327992004,1716763856950,-500.0,0.00027945,4]
[327992005,1716763856959,-500.0,0.00027945,4]
[327992006,1716763856969,-500.0,0.00027945,4]
[327992007,1716763856978,-500.0,0.00027945,4]
[327992008,1716763856987,-545.827251,0.00027945,7]
[327992009,1716763856996,-545.827251,0.00027945,7]
[327992010,1716763857005,-440.65,0.00027945,4]
[327992011,1716763857015,-160.2,0.00027945,4]
[327992012,1716763857024,-500.0,0.00027945,4]
[327992013,1716763857034,-500.0,0.00027945,4]
[327992014,1716763857043,-232.48,0.00027945,4]
[327992015,1716763857052,-500.0,0.00027945,4]
[327992016,1716763857062,-500.0,0.00027945,4]
[327992017,1716763857071,-500.0,0.00027945,4]
[327992018,1716763857080,-237.15,0.00027945,4]
[327992019,1716763857091,-500.0,0.00027945,4]
[327992020,1716763857100,-2072.24,0.00027945,4]
[327992021,1716763857109,-500.0,0.00027945,4]
[327992022,1716763857118,-342.03,0.00027945,4]
[327992023,1716763857127,-177.55,0.00027945,4]
[327992024,1716763857136,-500.0,0.00027945,4]
[327992025,1716763857146,-500.0,0.00027945,4]
[327992026,1716763857155,-416.26,0.00027945,4]
[327992027,1716763857164,-660.23,0.00027945,4]
[327992028,1716763857173,-495.01511654,0.00027945,4]
[327992029,1716763857183,-187.08,0.00027945,4]
[327992030,1716763857191,-500.0,0.00027945,4]
[327992031,1716763857200,-500.0,0.00027945,4]
[327992032,1716763857209,-500.0,0.00027945,4]
[327992033,1716763857218,-556.78,0.00027945,4]
[327992034,1716763857227,-325.32,0.00027945,4]
[327992035,1716763857236,-500.0,0.00027945,4]
[327992036,1716763857245,-233.32,0.00027945,4]
[327992037,1716763857255,-500.0,0.00027945,4]
[327992038,1716763857264,-414.43,0.00027945,4]
[327992039,1716763857273,-500.0,0.00027945,4]
[327992040,1716763857282,-572.55,0.00027945,4]
[327992041,1716763857291,-223.04,0.00027945,4]
[327992042,1716763857300,-500.0,0.00027945,4]
[327992043,1716763857309,-500.0,0.00027945,4]
[327992044,1716763857318,-500.0,0.00027945,4]
[327992045,1716763857327,-407.68,0.00027945,4]
[327992046,1716763857336,-448.94,0.00027945,4]
[327992047,1716763857345,-249.7,0.00027945,4]
[327992048,1716763857354,-500.0,0.00027945,4]
[327992049,1716763857364,-500.0,0.00027945,4]
[327992050,1716763857373,-238.59,0.00027945,4]
[327992051,1716763857381,-858.77,0.00027945,4]
[327992052,1716763857391,-235.38,0.00027945,4]
[327992053,1716763857400,-500.0,0.00027945,4]
[327992054,1716763857414,-1301.26637,0.00027945,7]
[327992055,1716763857423,-151.0,0.00027945,7]
[327992056,1716763857432,-1301.26637,0.00027945,7]
[327992057,1716763857441,-500.0,0.00027945,4]
[327992058,1716763857453,-500.0,0.00027945,4]
[327992059,1716763857462,-462.14,0.00027945,4]
[327992060,1716763857471,-500.0,0.00027945,4]
[327992061,1716763857480,-500.0,0.00027945,4]
[327992062,1716763857492,-289.07,0.00027945,4]
[327992063,1716763857502,-232.5,0.00027945,4]
[327992064,1716763857511,-151.0,0.00027945,7]
[327992065,1716763857520,-178.84,0.00027945,4]
[327992066,1716763857529,-173.472966,0.00027945,7]
[327992067,1716763857540,-500.0,0.00027945,4]
[327992068,1716763857549,-227.82,0.00027945,4]
[327992069,1716763857560,-359.25,0.00027945,4]
[327992070,1716763857569,-665.43,0.00027945,4]
[327992071,1716763857579,-500.0,0.00027945,4]
[327992072,1716763857588,-500.0,0.00027945,4]
[327992073,1716763857597,-276.60829832,0.00027956,2]
[327992074,1716763857606,-30000.0,0.00028,3]
[327992075,1716763857616,-7874.06300079,0.00028,2]
[327992076,1716763857625,-155.0,0.00028,2]
[327992077,1716763857634,-151.0,0.00028,7]
[327992078,1716763857643,-214.407712,0.00028,7]
[327992079,1716763857652,-151.0,0.00028,7]
[327992080,1716763857661,-198.798088,0.00028,7]
[327992081,1716763857670,-24218.53283678,0.00028,2]
[327992082,1716763857679,-3000.0,0.00028,2]
[327992083,1716763857689,-484.37065674,0.00028,2]
[327992084,1716763857698,-226.02454329,0.00028,2]
[327992085,1716763857707,-155.645705,0.00028051,2]
[327992086,1716763857716,-233.468558,0.00028051,2]
[327992087,1716763857725,-255.679047,0.00028051,2]
[327992088,1716763857734,-181.501984,0.00028051,2]
[327992089,1716763857743,-500.0,0.00028102,2]
[327992090,1716763857752,-500.0,0.00028102,2]
[327992091,1716763857762,-700.0,0.00028102,2]
[327992092,1716763857771,-500.0,0.00028102,2]
[327992093,1716763857780,-150.0,0.0002811,2]
[327992094,1716763857789,-150.0,0.0002811,2]
[327992095,1716763857798,-150.0,0.0002811,2]
[327992096,1716763857807,-150.0,0.0002811,2]
[327992097,1716763857817,-150.0,0.0002811,2]
[327992098,1716763857826,-165.94574548,0.00028128,2]
[327992099,1716763857835,-154.36900518,0.00028191,2]
[327992100,1716763857845,-4417.99,0.00028203,2]
[327992101,1716763857854,-500.0,0.00028219,4]
[327992102,1716763857863,-366.64,0.00028219,4]
[327992103,1716763857872,-500.0,0.00028219,4]
[327992104,1716763857881,-309.59,0.00028219,4]
[327992105,1716763857890,-768.66,0.00028219,4]
[327992106,1716763857900,-500.0,0.00028219,4]
[327992107,1716763857909,-500.0,0.00028219,4]
[327992108,1716763857918,-500.0,0.00028219,4]
[327992109,1716763857927,-500.0,0.00028219,4]
[327992110,1716763857936,-500.0,0.00028219,4]
[327992111,1716763857945,-500.0,0.00028219,4]
[327992112,1716763857953,-500.0,0.00028219,4]
[327992113,1716763857962,-500.0,0.00028219,4]
[327992114,1716763857971,-500.0,0.00028219,4]
[327992115,1716763857980,-500.0,0.00028219,4]
[327992116,1716763857989,-500.0,0.00028219,4]
[327992117,1716763857998,-500.0,0.00028219,4]
[327992118,1716763858007,-2072.24,0.00028219,4]
[327992119,1716763858016,-431.57,0.00028219,4]
[327992120,1716763858024,-500.0,0.00028219,4]
[327992121,1716763858034,-500.0,0.00028219,4]
[327992122,1716763858043,-660.23,0.00028219,4]
[327992123,1716763858052,-370.62,0.00028219,4]
[327992124,1716763858061,-500.0,0.00028219,4]
[327992125,1716763858069,-500.0,0.00028219,4]
[327992126,1716763858078,-491.85,0.00028219,4]
[327992127,1716763858087,-500.0,0.00028219,4]
[327992128,1716763858096,-500.0,0.00028219,4]
[327992129,1716763858106,-500.0,0.00028219,4]
[327992130,1716763858115,-500.0,0.00028219,4]
[327992131,1716763858236,-225.32,0.00028219,4]
[327992132,1716763858247,-500.0,0.00028219,4]
[327992133,1716763858256,-500.0,0.00028219,4]
[327992134,1716763858266,-858.77,0.00028219,4]
[327992135,1716763858275,-500.0,0.00028219,4]
[327992136,1716763858286,-500.0,0.00028219,4]
[327992137,1716763858295,-500.0,0.00028219,4]
[327992138,1716763858303,-500.0,0.00028219,4]
[327992139,1716763858312,-500.0,0.00028219,4]
[327992140,1716763858321,-500.0,0.00028219,4]
[327992141,1716763858330,-665.43,0.00028219,4]
[327992142,1716763858339,-500.0,0.00028219,4]
[327992143,1716763858348,-500.0,0.00028219,4]
[327992144,1716763858357,-153.26912183,0.00028222,2]
[327992145,1716763858366,-2625.0,0.00028384,3]
[327992146,1716763858375,-155.645705,0.00028389,2]
[327992147,1716763858386,-233.468558,0.00028389,2]
[327992148,1716763858395,-255.679047,0.00028389,2]
[327992149,1716763858405,-181.501984,0.00028389,2]
[327992150,1716763858418,-184.468985,0.00028389,2]
[327992151,1716763858427,-328.0,0.000284,17]
[327992152,1716763858437,-151.0,0.000284,14]
[327992153,1716763858448,-154.43062866,0.00028441,2]
[327992154,1716763858459,-415.055214,0.00028469,2]
[327992155,1716763858468,-183.896948,0.00028469,2]
[327992156,1716763858478,-186.015969,0.00028469,2]
[327992157,1716763858489,-235.507662,0.00028469,2]
[327992158,1716763858498,-196.62715,0.00028469,2]
[327992159,1716763858508,-455.418769,0.00028469,2]
[327992160,1716763858517,-237.716639,0.00028469,2]
[327992161,1716763858527,-196.233617,0.00028469,2]
[327992162,1716763858539,-389.928922,0.00028469,2]
[327992163,1716763858549,-182.816026,0.00028469,2]
[327992164,1716763858559,-151.711681,0.00028469,2]
[327992165,1716763858568,-1559.715687,0.00028469,2]
[327992166,1716763858578,-500.0,0.00028493,4]
[327992167,1716763858587,-500.0,0.00028493,4]
[327992168,1716763858596,-768.66,0.00028493,4]
[327992169,1716763858605,-450.57,0.00028493,4]
[327992170,1716763858614,-500.0,0.00028493,4]
[327992171,1716763858624,-500.0,0.00028493,4]
[327992172,1716763858632,-500.0,0.00028493,4]
[327992173,1716763858642,-326.96,0.00028493,4]
[327992174,1716763858652,-173.0461452,0.00028493,4]
[327992175,1716763858661,-500.0,0.00028493,4]
[327992176,1716763858670,-500.0,0.00028493,4]
[327992177,1716763858679,-500.0,0.00028493,4]
[327992178,1716763858689,-500.0,0.00028493,4]
[327992179,1716763858698,-500.0,0.00028493,4]
[327992180,1716763858708,-418.3,0.00028493,4]
[327992181,1716763858718,-2072.24,0.00028493,4]
[327992182,1716763858728,-500.0,0.00028493,4]
[327992183,1716763858737,-500.0,0.00028493,4]
[327992184,1716763858745,-660.23,0.00028493,4]
[327992185,1716763858757,-500.0,0.00028493,4]
[327992186,1716763858766,-500.0,0.00028493,4]
[327992187,1716763858776,-553.71,0.00028493,4]
[327992188,1716763858786,-500.0,0.00028493,4]
[327992189,1716763858797,-283.47,0.00028493,4]
[327992190,1716763858806,-500.0,0.00028493,4]
[327992191,1716763858816,-178.76,0.00028493,4]
[327992192,1716763858825,-500.0,0.00028493,4]
[327992193,1716763858835,-858.77,0.00028493,4]
[327992194,1716763858844,-500.0,0.00028493,4]
[327992195,1716763858853,-500.0,0.00028493,4]
[327992196,1716763858864,-500.0,0.00028493,4]
[327992197,1716763858873,-500.0,0.00028493,4]
[327992198,1716763858883,-500.0,0.00028493,4]
[327992199,1716763858892,-500.0,0.00028493,4]
[327992200,1716763858901,-665.43,0.00028493,4]
[327992201,1716763858911,-500.0,0.00028493,4]
[327992202,1716763858921,-500.0,0.00028493,4]
[327992203,1716763858930,-154.93677966,0.00028515,2]
[327992204,1716763858940,-157.36422571,0.00028562,2]
[327992205,1716763858949,-694.98447913,0.0002861,2]
[327992206,1716763858958,-163.0,0.00028637,2]
[327992207,1716763858967,-500.0,0.0002865,2]
[327992208,1716763858977,-700.0,0.0002865,2]
[327992209,1716763858987,-155.02839787,0.00028727,2]
[327992210,1716763858996,-500.0,0.00028767,4]
[327992211,1716763859006,-500.0,0.00028767,4]
[327992212,1716763859015,-768.66,0.00028767,4]
[327992213,1716763859025,-500.0,0.00028767,4]
[327992214,1716763859035,-360.65499117,0.00028767,4]
[327992215,1716763859044,-500.0,0.00028767,4]
[327992216,1716763859054,-500.0,0.00028767,4]
[327992217,1716763859063,-500.0,0.00028767,4]
[327992218,1716763859073,-500.0,0.00028767,4]
[327992219,1716763859082,-499.43,0.00028767,4]
[327992220,1716763859093,-500.0,0.00028767,4]
[327992221,1716763859102,-2072.24,0.00028767,4]
[327992222,1716763859111,-500.0,0.00028767,4]
[327992223,1716763859121,-383.39,0.00028767,4]
[327992224,1716763859131,-660.23,0.00028767,4]
[327992225,1716763859140,-500.0,0.00028767,4]
[327992226,1716763859150,-283.24,0.00028767,4]
[327992227,1716763859159,-500.0,0.00028767,4]
[327992228,1716763859168,-500.0,0.00028767,4]
[327992229,1716763859177,-500.0,0.00028767,4]
[327992230,1716763859187,-858.77,0.00028767,4]
[327992231,1716763859196,-500.0,0.00028767,4]
[327992232,1716763859205,-500.0,0.00028767,4]
[327992233,1716763859214,-341.96,0.00028767,4]
[327992234,1716763859224,-500.0,0.00028767,4]
[327992235,1716763859234,-500.0,0.00028767,4]
[327992236,1716763859243,-405.23583921,0.00028767,4]
[327992237,1716763859253,-665.43,0.00028767,4]
[327992238,1716763859262,-500.0,0.00028767,4]
[327992239,1716763859272,-500.0,0.00028767,4]
[327992240,1716763859281,-150.0,0.00028793,2]
[327992241,1716763859291,-415.055214,0.00028825,2]
[327992242,1716763859302,-196.62715,0.00028825,2]
[327992243,1716763859314,-455.418769,0.00028825,2]
[327992244,1716763859325,-389.928922,0.00028825,2]
[327992245,1716763859335,-1559.715687,0.00028825,2]
[327992246,1716763859346,-276.60829832,0.00028841,2]
[327992247,1716763859355,-328.0,0.000289,17]
[327992248,1716763859365,-154.36900518,0.00028929,2]
[327992249,1716763859374,-3678.76763358,0.0002895,2]
[327992250,1716763859383,-197.8,0.00028962,7]
[327992251,1716763859392,-157.36422578,0.00028976,2]
[327992252,1716763859402,-166.66666666,0.00028977,2]
[327992253,1716763859416,-17961.95901356,0.00028997,10]
[327992254,1716763859425,-545.827251,0.00028997,7]
[327992255,1716763859434,-545.827255,0.00028997,7]
[327992256,1716763859443,-334.271995,0.00028997,7]
[327992257,1716763859454,-334.271996,0.00028997,7]
[327992258,1716763859462,-371.595041,0.00028997,7]
[327992259,1716763859471,-371.595035,0.00028997,7]
[327992260,1716763859480,-151.0,0.00028997,7]
[327992261,1716763859493,-1301.26637,0.00028997,7]
[327992262,1716763859503,-151.0,0.00028997,7]
[327992263,1716763859513,-1301.266379,0.00028997,7]
[327992264,1716763859522,-151.0,0.00028997,7]
[327992265,1716763859531,-1483.6790455,0.00029,2]
[327992266,1716763859541,-189630.5490779,0.00029,2]
[327992267,1716763859550,-250000.0,0.00029,2]
[327992268,1716763859559,-150.08593201,0.00029,2]
[327992269,1716763859568,-1000.0,0.00029,5]
[327992270,1716763859577,-742.0,0.00029,6]
[327992271,1716763859587,-151.0,0.00029,7]
[327992272,1716763859596,-151.0,0.00029,7]
[327992273,1716763859605,-214.407712,0.00029,7]
[327992274,1716763859614,-214.407715,0.00029,7]
[327992275,1716763859624,-1250.0,0.00029,2]
[327992276,1716763859634,-183.09,0.00029041,4]
[327992277,1716763859643,-500.0,0.00029041,4]
[327992278,1716763859652,-768.66,0.00029041,4]
[327992279,1716763859661,-500.0,0.00029041,4]
[327992280,1716763859671,-500.0,0.00029041,4]
[327992281,1716763859680,-500.0,0.00029041,4]
[327992282,1716763859689,-500.0,0.00029041,4]
[327992283,1716763859698,-485.68,0.00029041,4]
[327992284,1716763859707,-500.0,0.00029041,4]
[327992285,1716763859716,-2072.24,0.00029041,4]
[327992286,1716763859725,-500.0,0.00029041,4]
[327992287,1716763859734,-660.23,0.00029041,4]
[327992288,1716763859743,-500.0,0.00029041,4]
[327992289,1716763859752,-530.02,0.00029041,4]
[327992290,1716763859762,-500.0,0.00029041,4]
[327992291,1716763859771,-500.0,0.00029041,4]
[327992292,1716763859780,-858.77,0.00029041,4]
[327992293,1716763859789,-500.0,0.00029041,4]
[327992294,1716763859798,-500.0,0.00029041,4]
[327992295,1716763859807,-500.0,0.00029041,4]
[327992296,1716763859817,-500.0,0.00029041,4]
[327992297,1716763859827,-665.43,0.00029041,4]
[327992298,1716763859836,-500.0,0.00029041,4]
[327992299,1716763859847,-500.0,0.00029041,4]
[327992300,1716763859858,-276.703476,0.00029181,2]
[327992301,1716763859867,-415.055214,0.00029181,2]
[327992302,1716763859877,-196.62715,0.00029181,2]
[327992303,1716763859886,-455.418769,0.00029181,2]
[327992304,1716763859895,-389.928922,0.00029181,2]
[327992305,1716763859904,-1559.715687,0.00029181,2]
[327992306,1716763859913,-151.711681,0.00029181,2]
[327992307,1716763859922,-500.0,0.00029198,2]
[327992308,1716763859932,-700.0,0.00029198,2]
[327992309,1716763859941,-500.0,0.00029198,2]
[327992310,1716763859950,-500.0,0.00029198,2]
[327992311,1716763859960,-997.4,0.00029205,2]
[327992312,1716763859970,-6530.20310698,0.00029264,2]
[327992313,1716763859979,-158.12229019,0.00029288,2]
[327992314,1716763859989,-500.0,0.00029315,4]
[327992315,1716763859999,-768.66,0.00029315,4]
[327992316,1716763860008,-500.0,0.00029315,4]
[327992317,1716763860018,-525.08,0.00029315,4]
[327992318,1716763860027,-500.0,0.00029315,4]
[327992319,1716763860037,-500.0,0.00029315,4]
[327992320,1716763860047,-411.65,0.00029315,4]
[327992321,1716763860056,-2072.24,0.00029315,4]
[327992322,1716763860065,-500.0,0.00029315,4]
[327992323,1716763860075,-660.23,0.00029315,4]
[327992324,1716763860084,-500.0,0.00029315,4]
[327992325,1716763860094,-500.0,0.00029315,4]
[327992326,1716763860103,-500.0,0.00029315,4]
[327992327,1716763860113,-858.77,0.00029315,4]
[327992328,1716763860122,-500.0,0.00029315,4]
[327992329,1716763860131,-500.0,0.00029315,4]
[327992330,1716763860140,-500.0,0.00029315,4]
[327992331,1716763860151,-417.0,0.00029315,4]
[327992332,1716763860160,-665.43,0.00029315,4]
[327992333,1716763860171,-500.0,0.00029315,4]
[327992334,1716763860181,-500.0,0.00029315,4]
[327992335,1716763860191,-165.94574548,0.00029368,2]
[327992336,1716763860202,-328.0,0.000294,18]
[327992337,1716763860212,-2501.59,0.00029419,2]
[327992338,1716763860221,-153.56431096,0.00029441,2]
[327992339,1716763860231,-325.80378299,0.000295,3]
[327992340,1716763860244,-276.703476,0.00029537,2]
[327992341,1716763860254,-415.055214,0.00029537,2]
[327992342,1716763860264,-196.62715,0.00029537,2]
[327992343,1716763860274,-455.418769,0.00029537,2]
[327992344,1716763860283,-389.928922,0.00029537,2]
[327992345,1716763860293,-1559.715687,0.00029537,2]
[327992346,1716763860302,-500.0,0.00029589,4]
[327992347,1716763860312,-768.66,0.00029589,4]
[327992348,1716763860321,-500.0,0.00029589,4]
[327992349,1716763860331,-500.0,0.00029589,4]
[327992350,1716763860342,-500.0,0.00029589,4]
[327992351,1716763860352,-2072.24,0.00029589,4]
[327992352,1716763860361,-500.0,0.00029589,4]
[327992353,1716763860370,-660.23,0.00029589,4]
[327992354,1716763860380,-500.0,0.00029589,4]
[327992355,1716763860392,-500.0,0.00029589,4]
[327992356,1716763860401,-500.0,0.00029589,4]
[327992357,1716763860414,-858.77,0.00029589,4]
[327992358,1716763860423,-500.0,0.00029589,4]
[327992359,1716763860432,-500.0,0.00029589,4]
[327992360,1716763860441,-500.0,0.00029589,4]
[327992361,1716763860452,-665.43,0.00029589,4]
[327992362,1716763860462,-500.0,0.00029589,4]
[327992363,1716763860471,-500.0,0.00029589,4]
[327992364,1716763860481,-276.60829832,0.0002959,2]
[327992365,1716763860493,-155.03078473,0.00029626,2]
[327992366,1716763860503,-1510.63,0.00029698,2]
[327992367,1716763860512,-500.0,0.00029746,2]
[327992368,1716763860521,-500.0,0.00029863,4]
[327992369,1716763860531,-768.66,0.00029863,4]
[327992370,1716763860540,-500.0,0.00029863,4]
[327992371,1716763860549,-500.0,0.00029863,4]
[327992372,1716763860559,-500.0,0.00029863,4]
[327992373,1716763860568,-2072.24,0.00029863,4]
[327992374,1716763860578,-500.0,0.00029863,4]
[327992375,1716763860587,-660.23,0.00029863,4]
[327992376,1716763860598,-500.0,0.00029863,4]
[327992377,1716763860607,-382.94,0.00029863,4]
[327992378,1716763860616,-500.0,0.00029863,4]
[327992379,1716763860625,-858.77,0.00029863,4]
[327992380,1716763860635,-500.0,0.00029863,4]
[327992381,1716763860645,-500.0,0.00029863,4]
[327992382,1716763860654,-597.04,0.00029863,4]
[327992383,1716763860663,-665.43,0.00029863,4]
[327992384,1716763860672,-500.0,0.00029863,4]
[327992385,1716763860681,-500.0,0.00029863,4]
[327992386,1716763860690,-1178.838,0.0002988,7]
[327992387,1716763860699,-276.703476,0.00029893,2]
[327992388,1716763860708,-415.055214,0.00029893,2]
[327992389,1716763860718,-196.62715,0.00029893,2]
[327992390,1716763860727,-455.418769,0.00029893,2]
[327992391,1716763860736,-389.928922,0.00029893,2]
[327992392,1716763860745,-1559.715687,0.00029893,2]
[327992393,1716763860755,-182.816026,0.00029893,2]
[327992394,1716763860763,-151.711681,0.00029893,2]
[327992395,1716763860773,-26292.14802408,0.000299,2]
[327992396,1716763860782,-328.0,0.000299,18]
[327992397,1716763860791,-383.94,0.00029963,2]
[327992398,1716763860801,-276.60829832,0.00029987,2]
[327992399,1716763860812,-8133.7390635,0.0003,2]
[327992400,1716763860821,-155.0,0.0003,4]
[327992401,1716763860831,-23844.69262994,0.0003,4]
[327992402,1716763860842,-19417.56126702,0.0003,4]
[327992403,1716763860851,-2345.12481961,0.0003,4]
[327992404,1716763860860,-30000.0,0.0003,3]
[327992405,1716763860869,-411.92469465,0.0003,10]
[327992406,1716763860878,-985.59237369,0.0003,3]
[327992407,1716763860887,-684.8921,0.0003,4]
[327992408,1716763860896,-26900.0,0.0003,7]
[327992409,1716763860905,-151.913902,0.0003,7]
[327992410,1716763860914,-2320.47919859,0.0003,2]
[327992411,1716763860924,-14007.23482901,0.0003,4]
[327992412,1716763860933,-14007.23482901,0.0003,4]
[327992413,1716763860943,-14007.23482901,0.0003,4]
[327992414,1716763860951,-14007.23482901,0.0003,4]
[327992415,1716763861068,-155.03078473,0.00030024,7]
[327992416,1716763861078,-751.0,0.000301,2]
[327992417,1716763861088,-500.0,0.00030136,4]
[327992418,1716763861097,-768.66,0.00030136,4]
[327992419,1716763861106,-500.0,0.00030136,4]
[327992420,1716763861116,-500.0,0.00030136,4]
[327992421,1716763861126,-500.0,0.00030136,4]
[327992422,1716763861135,-2072.24,0.00030136,4]
[327992423,1716763861144,-500.0,0.00030136,4]
[327992424,1716763861153,-660.23,0.00030136,4]
[327992425,1716763861162,-500.0,0.00030136,4]
[327992426,1716763861172,-500.0,0.00030136,4]
[327992427,1716763861181,-858.77,0.00030136,4]
[327992428,1716763861190,-500.0,0.00030136,4]
[327992429,1716763861199,-665.43,0.00030136,4]
[327992430,1716763861208,-500.0,0.00030136,4]
[327992431,1716763861216,-500.0,0.00030136,4]
[327992432,1716763861225,-285.893883,0.00030137,7]
[327992433,1716763861234,-154.43062866,0.00030203,7]
[327992434,1716763861243,-154.43062866,0.00030233,7]
[327992435,1716763861253,-276.60829832,0.00030285,7]
[327992436,1716763861261,-500.0,0.00030294,10]
[327992437,1716763861270,-700.0,0.00030294,10]
[327992438,1716763861279,-500.0,0.00030294,10]
[327992439,1716763861288,-1700.27630279,0.00030398,2]
[327992440,1716763861297,-328.0,0.000304,19]
[327992441,1716763861306,-2116.66131655,0.000304,2]
[327992442,1716763861315,-500.0,0.0003041,4]
[327992443,1716763861324,-768.66,0.0003041,4]
[327992444,1716763861333,-500.0,0.0003041,4]
[327992445,1716763861344,-500.0,0.0003041,4]
[327992446,1716763861354,-500.0,0.0003041,4]
[327992447,1716763861364,-2072.24,0.0003041,4]
[327992448,1716763861373,-500.0,0.0003041,4]
[327992449,1716763861382,-660.23,0.0003041,4]
[327992450,1716763861391,-500.0,0.0003041,4]
[327992451,1716763861400,-500.0,0.0003041,4]
[327992452,1716763861622,-858.77,0.0003041,4]
[327992453,1716763861632,-500.0,0.0003041,4]
[327992454,1716763861642,-665.43,0.0003041,4]
[327992455,1716763861651,-500.0,0.0003041,4]
[327992456,1716763861660,-500.0,0.0003041,4]
[327992457,1716763861669,-155.03078473,0.00030509,7]
[327992458,1716763861678,-997.4,0.0003051,2]
[327992459,1716763861688,-276.60829832,0.00030569,7]
[327992460,1716763861697,-197.8,0.00030589,7]
[327992461,1716763861706,-154.36900518,0.00030607,7]
[327992462,1716763861715,-500.0,0.00030684,4]
[327992463,1716763861724,-768.66,0.00030684,4]
[327992464,1716763861733,-500.0,0.00030684,4]
[327992465,1716763861743,-500.0,0.00030684,4]
[327992466,1716763861752,-194.48754493,0.00030684,4]
[327992467,1716763861762,-2072.24,0.00030684,4]
[327992468,1716763861771,-500.0,0.00030684,4]
[327992469,1716763861781,-660.23,0.00030684,4]
[327992470,1716763861791,-562.98466782,0.00030684,4]
[327992471,1716763861800,-500.0,0.00030684,4]
[327992472,1716763861810,-858.77,0.00030684,4]
[327992473,1716763861819,-622.34,0.00030684,4]
[327992474,1716763861828,-665.43,0.00030684,4]
[327992475,1716763861839,-500.0,0.00030684,4]
[327992476,1716763861848,-500.0,0.00030684,4]
[327992477,1716763861857,-155.0283979,0.00030738,7]
[327992478,1716763861867,-207.0,0.0003075,2]
[327992479,1716763861876,-158.12229019,0.00030777,7]
[327992480,1716763861886,-158.52692095,0.00030831,7]
[327992481,1716763861896,-276.60829832,0.00030833,7]
[327992482,1716763861905,-328.0,0.000309,19]
[327992483,1716763861915,-500.0,0.00030958,4]
[327992484,1716763861924,-768.66,0.00030958,4]
[327992485,1716763861933,-500.0,0.00030958,4]
[327992486,1716763861944,-500.0,0.00030958,4]
[327992487,1716763861953,-2072.24,0.00030958,4]
[327992488,1716763861963,-500.0,0.00030958,4]
[327992489,1716763861972,-660.23,0.00030958,4]
[327992490,1716763861982,-557.03,0.00030958,4]
[327992491,1716763861991,-858.77,0.00030958,4]
[327992492,1716763862001,-665.43,0.00030958,4]
[327992493,1716763862010,-500.0,0.00030958,4]